bitfinex/quotes_SOLUSD_20251124
["timestamp","ask_amount","ask_price","bid_price","bid_amount"]
[1763994056159,12.8846231,129.78,129.74,19.28071079]
[1763994056358,5.88284186,129.77,129.75,0.67]
[1763994056528,5.88173843,129.77,129.75,0.67]
[1763994056730,2.97184679,129.76,129.73,0.67]
[1763994056925,2.97184679,129.76,129.74,0.67]
[1763994057171,8.85358522,129.77,129.74,0.67]
[1763994058468,12.16351967,129.78,129.74,3.64184679]
[1763994058751,12.88351967,129.78,129.75,0.67]
[1763994059671,7.72178124,129.78,129.75,0.67]
[1763994059964,12.88216037,129.78,129.75,0.67]
[1763994060260,2.97184679,129.77,129.75,0.67]
[1763994060764,2.97184679,129.77,129.73,2.97184679]
[1763994061066,2.97184679,129.77,129.74,0.67]
[1763994063260,3.69184679,129.76,129.73,0.67]
[1763994064236,2.97184679,129.76,129.73,0.67]
[1763994064957,12.88216037,129.78,129.73,3.64184679]
[1763994065149,5.88037913,129.77,129.73,3.64184679]
[1763994065464,0.72,129.77,129.74,0.67]
[1763994066258,5.88037913,129.77,129.74,0.67]
[1763994066439,8.85222592,129.77,129.74,0.67]
[1763994066639,8.13222592,129.77,129.74,0.67]
[1763994067168,8.85222592,129.77,129.74,0.67]
[1763994067971,5.88037913,129.77,129.74,0.67]
[1763994068662,8.85222592,129.77,129.74,0.67]
[1763994069262,8.13222592,129.77,129.74,0.67]
[1763994069463,3.69184679,129.76,129.72,19.28071079]
[1763994069683,0.72,129.76,129.74,0.67]
[1763994069844,8.85222592,129.77,129.74,0.67]
[1763994070850,8.85222592,129.77,129.72,3.64184679]
[1763994070851,3.69184679,129.76,129.72,3.64184679]
[1763994071172,8.85222592,129.76,129.73,0.67]
[1763994071469,3.69184679,129.76,129.73,0.67]
[1763994071662,8.85222592,129.76,129.73,0.67]
[1763994071864,3.69184679,129.76,129.73,0.67]
[1763994072047,8.85222592,129.76,129.73,0.67]
[1763994072249,3.69184679,129.76,129.73,0.67]
[1763994072458,8.85222592,129.76,129.73,0.67]
[1763994072655,3.69184679,129.76,129.73,0.67]
[1763994072853,5.16037913,129.76,129.73,0.67]
[1763994073057,8.85222592,129.77,129.73,0.67]
[1763994074567,0.72,129.76,129.73,0.67]
[1763994074772,8.85222592,129.77,129.73,0.67]
[1763994074969,3.69184679,129.76,129.72,0.67]
[1763994075160,3.69184679,129.76,129.72,3.64184679]
[1763994075360,0.72,129.75,129.72,3.64184679]
[1763994075672,0.72,129.75,129.73,0.67]
[1763994076183,2.97184679,129.76,129.73,0.67]
[1763994076480,3.69184679,129.76,129.73,0.67]
[1763994077893,3.69184679,129.75,129.71,0.1]
[1763994078097,2.97184679,129.73,129.71,0.1]
[1763994078252,20.73961308,129.72,129.71,0.1]
[1763994078449,16.45102557,129.7,129.69,0.1]
[1763994078653,26.09769169,129.69,129.68,0.1]
[1763994078952,26.09769169,129.69,129.67,0.1]
[1763994078953,0.14216157,129.68,129.67,0.1]
[1763994079173,8.99438749,129.68,129.67,0.1]
[1763994082276,3.83400836,129.68,129.67,0.1]
[1763994082778,8.97053046,129.68,129.67,0.1]
[1763994082981,18.75935815,129.68,129.67,0.1]
[1763994083358,13.62283605,129.68,129.67,0.1]
[1763994085869,17.65679683,129.68,129.67,0.1]
[1763994086184,17.65679683,129.68,129.65,0.1]
[1763994086185,16.45102557,129.66,129.65,0.1]
[1763994086479,34.71025952,129.66,129.65,0.1]
[1763994086650,35.43025952,129.66,129.65,0.1]
[1763994086854,19.708864,129.66,129.65,0.1]
[1763994087075,22.68071079,129.66,129.65,0.1]
[1763994087878,23.40071079,129.66,129.65,0.1]
[1763994088265,22.68071079,129.66,129.65,0.1]
[1763994088779,4.03396078,129.68,129.65,0.82]
[1763994088957,10.40580757,129.68,129.65,0.82]
[1763994090793,7.43396078,129.68,129.65,3.79184679]
[1763994091008,4.03396078,129.68,129.67,2.97184679]
[1763994091291,1.0,129.73,129.67,2.97184679]
[1763994091461,5.03177088,129.73,129.69,2.97184679]
[1763994091790,1.0,129.73,129.71,2.97184679]
[1763994092183,1.0,129.73,129.72,0.72]
[1763994093879,3.97184679,129.73,129.71,0.72]
[1763994094705,3.97184679,129.73,129.67,16.308864]
[1763994094882,3.97184679,129.73,129.7,0.72]
[1763994096304,1.0,129.73,129.7,0.72]
[1763994096609,1.0,129.73,129.71,4.64561759]
[1763994097013,1.0,129.73,129.72,0.72]
[1763994100317,4.64561759,129.74,129.72,0.72]
[1763994101314,4.64561759,129.74,129.69,4.64561759]
[1763994103023,4.64561759,129.74,129.7,4.64561759]
[1763994103207,4.64561759,129.75,129.7,4.64561759]
[1763994103520,4.64561759,129.75,129.71,4.64561759]
[1763994104021,4.64561759,129.75,129.7,4.64561759]
[1763994104716,4.64561759,129.74,129.7,4.64561759]
[1763994105307,4.64561759,129.74,129.69,0.72]
[1763994105514,4.64561759,129.74,129.69,5.36561759]
[1763994106222,4.64561759,129.74,129.7,4.64561759]
[1763994107317,4.64561759,129.75,129.7,4.64561759]
[1763994107523,4.64561759,129.75,129.71,5.32561759]
[1763994108002,12.07668349,129.76,129.72,5.32561759]
[1763994108341,12.07668349,129.76,129.69,11.79047798]
[1763994108625,12.07668349,129.76,129.72,4.64561759]
[1763994108920,12.07668349,129.76,129.71,4.64561759]
[1763994109599,4.64561759,129.73,129.68,115.28882769]
[1763994109802,4.64561759,129.73,129.69,4.64561759]
[1763994110197,4.64561759,129.74,129.69,4.64561759]
[1763994110398,4.64561759,129.74,129.7,4.64561759]
[1763994112628,5.30561759,129.74,129.7,4.64561759]
[1763994113128,5.30561759,129.74,129.68,18.18000284]
[1763994113331,5.30561759,129.74,129.7,4.64561759]
[1763994116744,4.64561759,129.73,129.67,118.408864]
[1763994117039,4.64561759,129.73,129.69,4.64561759]
[1763994117507,5.30561759,129.74,129.69,4.64561759]
[1763994117912,5.30561759,129.74,129.69,5.33561759]
[1763994118237,7.4310659,129.76,129.69,5.33561759]
[1763994118238,5.30561759,129.73,129.69,5.33561759]
[1763994119815,5.30561759,129.72,129.67,4.64561759]
[1763994120128,4.64561759,129.71,129.66,15.12444528]
[1763994120456,4.64561759,129.7,129.66,4.64561759]
[1763994120608,4.64561759,129.7,129.66,5.33561759]
[1763994120814,4.64561759,129.71,129.67,4.64561759]
[1763994121012,16.968864,129.75,129.69,4.64561759]
[1763994121225,5.30561759,129.74,129.69,4.64561759]
[1763994121408,4.64561759,129.73,129.68,5.33561759]
[1763994121629,0.66,129.73,129.68,5.33561759]
[1763994121853,5.30561759,129.73,129.68,5.33561759]
[1763994122011,4.64561759,129.72,129.68,5.33561759]
[1763994122214,8.67734844,129.72,129.68,5.33561759]
[1763994122516,4.03173085,129.72,129.68,5.33561759]
[1763994122821,9.33734844,129.72,129.68,5.33561759]
[1763994123140,0.66,129.71,129.68,4.64561759]
[1763994123355,9.33734844,129.72,129.68,4.64561759]
[1763994124625,9.33734844,129.72,129.68,5.33561759]
[1763994125442,9.33734844,129.72,129.68,0.69]
[1763994125617,9.33734844,129.72,129.68,5.33561759]
[1763994127631,4.69173085,129.72,129.68,5.33561759]
[1763994128361,4.69173085,129.72,129.69,0.69]
[1763994129842,4.03173085,129.72,129.69,0.69]
[1763994130162,4.03173085,129.72,129.69,5.33561759]
[1763994130657,4.03173085,129.72,129.7,5.33561759]
[1763994131045,4.03173085,129.72,129.69,5.33561759]
[1763994132245,4.03173085,129.72,129.69,0.69]
[1763994132433,4.03173085,129.72,129.69,5.33561759]
[1763994132959,4.03173085,129.72,129.69,0.69]
[1763994133158,0.66,129.71,129.68,4.64561759]
[1763994133461,0.66,129.71,129.68,5.33561759]
[1763994135160,4.69173085,129.72,129.69,0.69]
[1763994135548,4.03173085,129.72,129.69,5.33561759]
[1763994135853,5.82011531,129.73,129.69,5.33561759]
[1763994136058,9.85149031,129.73,129.69,5.33561759]
[1763994136370,0.66,129.72,129.68,5.33561759]
[1763994137359,5.8206778,129.72,129.69,0.69]
[1763994137551,0.66,129.72,129.68,5.33561759]
[1763994138434,4.64561759,129.71,129.66,0.69]
[1763994138640,9.806103,129.71,129.66,5.33561759]
[1763994138856,0.66,129.7,129.66,5.33561759]
[1763994141675,0.66,129.7,129.66,4.64561759]
[1763994142667,0.66,129.7,129.66,5.30561759]
[1763994143881,5.30561759,129.7,129.66,0.66]
[1763994144282,0.69,129.69,129.66,4.64561759]
[1763994144863,0.69,129.69,129.66,0.66]
[1763994145189,0.69,129.69,129.66,5.30561759]
[1763994145763,9.80459272,129.71,129.66,4.64561759]
[1763994145965,0.69,129.7,129.67,5.30561759]
[1763994146166,9.2478194,129.72,129.68,5.30561759]
[1763994146492,5.1578194,129.72,129.69,4.64561759]
[1763994146799,5.8478194,129.72,129.69,5.30561759]
[1763994148008,0.69,129.72,129.69,5.30561759]
[1763994148593,9.8791944,129.73,129.7,0.66]
[1763994148798,0.69,129.72,129.69,5.30561759]
[1763994150160,9.1891944,129.73,129.71,4.64561759]
[1763994150359,4.031375,129.73,129.71,4.64561759]
[1763994150598,5.8478194,129.75,129.72,0.66]
[1763994150763,0.69,129.75,129.72,0.66]
[1763994152203,4.64561759,129.74,129.7,5.30561759]
[1763994152581,0.69,129.73,129.7,5.30561759]
[1763994152808,0.69,129.73,129.7,0.66]
[1763994153112,0.69,129.73,129.69,8.04561759]
[1763994153480,0.69,129.73,129.7,0.66]
[1763994154907,0.69,129.73,129.69,4.64561759]
[1763994155118,0.69,129.73,129.69,5.30561759]
[1763994155617,0.69,129.73,129.7,0.66]
[1763994156822,0.69,129.73,129.7,5.30561759]
[1763994158646,0.69,129.73,129.7,3.63294354]
[1763994159828,0.69,129.73,129.7,0.66]
[1763994160453,2.97294354,129.72,129.68,2.97294354]
[1763994160613,2.97294354,129.72,129.67,16.16177123]
[1763994160814,0.69,129.72,129.68,3.63294354]
[1763994161043,0.69,129.72,129.69,2.97294354]
[1763994162243,0.69,129.73,129.69,3.63294354]
[1763994163336,0.69,129.73,129.7,3.63294354]
[1763994164008,0.69,129.73,129.69,2.97294354]
[1763994164247,0.69,129.73,129.69,3.63294354]
[1763994164767,3.66294354,129.73,129.69,2.97294354]
[1763994164956,0.69,129.73,129.69,3.63294354]
[1763994165258,0.69,129.72,129.69,3.63294354]
[1763994166445,0.69,129.72,129.68,3.63294354]
[1763994167859,0.69,129.72,129.69,0.72]
[1763994168060,0.69,129.72,129.69,3.69294354]
[1763994168654,0.69,129.72,129.69,2.97294354]
[1763994168846,3.66294354,129.72,129.67,2.97294354]
[1763994169168,0.71,129.71,129.67,3.69294354]
[1763994170381,3.68294354,129.71,129.65,0.1]
[1763994170543,5.30691236,129.74,129.66,2.97294354]
[1763994170544,3.68294354,129.7,129.66,2.97294354]
[1763994170742,0.71,129.7,129.66,2.97294354]
[1763994170975,0.71,129.69,129.66,3.69294354]
[1763994172142,2.97294354,129.71,129.66,3.69294354]
[1763994172360,0.71,129.69,129.66,3.69294354]
[1763994175692,0.71,129.69,129.66,0.72]
[1763994175894,0.71,129.69,129.66,3.69294354]
[1763994176790,0.67,129.72,129.68,2.97294354]
[1763994176993,0.67,129.72,129.69,2.97294354]
[1763994177182,0.67,129.72,129.69,3.69294354]
[1763994177867,5.82955438,129.74,129.7,3.69294354]
[1763994178084,0.67,129.73,129.7,3.69294354]
[1763994180402,8.13249792,129.74,129.7,2.97294354]
[1763994180572,4.03063681,129.76,129.73,2.97294354]
[1763994180994,9.86165342,129.76,129.73,3.69294354]
[1763994181191,0.67,129.75,129.72,2.97294354]
[1763994181799,0.67,129.75,129.72,3.69294354]
[1763994182294,4.70063681,129.76,129.73,0.72]
[1763994183397,4.70063681,129.76,129.72,3.69294354]
[1763994183695,3.64294354,129.75,129.71,3.69294354]
[1763994183994,0.67,129.75,129.71,3.69294354]
[1763994184593,0.67,129.75,129.72,3.69294354]
[1763994185199,0.67,129.75,129.71,3.69294354]
[1763994185386,3.64294354,129.75,129.71,3.69294354]
[1763994185589,0.67,129.75,129.71,3.69294354]
[1763994185783,7.00358035,129.76,129.71,3.69294354]
[1763994185982,0.67,129.74,129.71,3.69294354]
[1763994188402,7.00358035,129.76,129.72,2.97294354]
[1763994188590,4.70063681,129.76,129.72,3.69294354]
[1763994188786,4.03063681,129.76,129.74,2.97294354]
[1763994188996,0.2,129.81,129.75,2.97294354]
[1763994189204,4.22914125,129.81,129.77,2.97294354]
[1763994189385,4.89914125,129.81,129.77,2.97294354]
[1763994189708,4.89914125,129.81,129.78,2.97294354]
[1763994190007,0.67,129.8,129.77,3.69294354]
[1763994199809,0.67,129.8,129.77,2.97294354]
[1763994200001,3.64294354,129.8,129.76,7.09294354]
[1763994200201,2.97294354,129.79,129.75,2.97294354]
[1763994200414,3.64294354,129.79,129.74,7.09294354]
[1763994200597,3.64294354,129.78,129.74,2.97294354]
[1763994200992,0.67,129.77,129.74,2.97294354]
[1763994203518,0.65,129.77,129.74,3.63294354]
[1763994205498,0.65,129.77,129.75,2.97294354]
[1763994208930,0.65,129.78,129.75,3.63294354]
[1763994209125,0.65,129.77,129.75,2.97294354]
[1763994210926,3.62294354,129.79,129.75,3.63294354]
[1763994211228,0.65,129.78,129.75,0.66]
[1763994211432,3.62294354,129.78,129.74,6.37294354]
[1763994211799,0.65,129.77,129.74,7.03294354]
[1763994212422,4.22914125,129.81,129.76,2.97294354]
[1763994212617,0.2,129.81,129.8,2.97294354]
[1763994212821,0.2,129.81,129.79,3.63294354]
[1763994213107,0.85,129.81,129.78,6.37294354]
[1763994213515,0.65,129.8,129.79,2.97294354]
[1763994215035,0.2,129.81,129.79,11.33767331]
[1763994215209,0.2,129.81,129.8,3.63294354]
[1763994217528,0.2,129.81,129.8,37.57695704]
[1763994218937,0.2,129.81,129.8,40.97695704]
[1763994220650,0.2,129.81,129.8,42.63973794]
[1763994224250,0.2,129.81,129.8,144.73973794]
[1763994225931,0.2,129.81,129.8,141.33973794]
[1763994226249,0.2,129.81,129.8,144.73973794]
[1763994229250,0.2,129.82,129.81,9.78882769]
[1763994229550,0.2,129.82,129.81,15.9149088]
[1763994230154,0.2,129.82,129.81,118.0149088]
[1763994230456,0.2,129.82,129.81,125.71847555]
[1763994236859,0.2,129.82,129.81,124.99847555]
[1763994237065,0.2,129.82,129.81,125.70847555]
[1763994240865,0.91,129.82,129.81,116.20134593]
[1763994241161,0.2,129.82,129.81,120.83707037]
[1763994242340,0.2,129.82,129.81,128.54063712]
[1763994242968,0.2,129.82,129.81,129.25063712]
[1763994243161,0.2,129.82,129.81,128.54063712]
[1763994243356,0.2,129.82,129.81,120.83707037]
[1763994243672,0.2,129.82,129.81,128.54063712]
[1763994245171,0.2,129.82,129.81,129.25063712]
[1763994246272,0.2,129.82,129.81,152.44063712]
[1763994246454,0.2,129.82,129.81,129.25063712]
[1763994249074,0.2,129.85,129.84,26.09769169]
[1763994249371,0.2,129.85,129.84,38.76914057]
[1763994249977,0.91,129.85,129.84,34.13341613]
[1763994250866,0.91,129.85,129.84,20.94458844]
[1763994251170,0.91,129.85,129.84,24.34458844]
[1763994252456,0.91,129.85,129.84,8.03572444]
[1763994253056,0.2,129.85,129.84,13.38144888]
[1763994253258,0.91,129.85,129.84,22.46027657]
[1763994253572,0.91,129.85,129.84,17.82455213]
[1763994254090,0.91,129.85,129.84,8.03572444]
[1763994254584,0.91,129.85,129.84,4.63572444]
[1763994254753,0.91,129.85,129.84,8.03572444]
[1763994256847,0.91,129.85,129.84,4.63572444]
[1763994257078,0.91,129.85,129.84,3.4]
[1763994257574,0.91,129.85,129.84,4.63572444]
[1763994265895,0.91,129.85,129.83,8.03572444]
[1763994266094,0.71,129.84,129.8,3.4]
[1763994266267,0.71,129.84,129.82,4.63572444]
[1763994266468,0.71,129.84,129.83,4.63572444]
[1763994270710,0.71,129.84,129.8,3.4]
[1763994270882,0.71,129.84,129.81,4.63572444]
[1763994271199,0.71,129.84,129.82,4.63572444]
[1763994272177,0.71,129.84,129.81,4.63572444]
[1763994275806,5.34572444,129.84,129.8,4.63572444]
[1763994275990,0.71,129.83,129.79,4.63572444]
[1763994276498,5.34572444,129.83,129.79,4.63572444]
[1763994277006,0.71,129.82,129.79,4.63572444]
[1763994278684,5.34572444,129.82,129.78,4.63572444]
[1763994278903,0.71,129.81,129.78,4.63572444]
[1763994280613,0.71,129.81,129.79,4.63572444]
[1763994281130,0.71,129.81,129.78,4.63572444]
[1763994282818,0.71,129.81,129.78,2.9695686]
[1763994283514,2.9695686,129.8,129.75,16.308864]
[1763994283713,2.9695686,129.8,129.76,2.9695686]
[1763994283892,0.71,129.79,129.76,2.9695686]
[1763994287824,0.71,129.79,129.77,2.9695686]
[1763994288528,0.71,129.79,129.78,2.9695686]
[1763994289210,0.67,129.8,129.78,2.9695686]
[1763994289396,3.6395686,129.8,129.76,3.4]
[1763994289718,0.67,129.8,129.77,2.9695686]
[1763994289918,0.67,129.79,129.77,2.9695686]
[1763994290296,0.67,129.79,129.76,2.9695686]
[1763994294840,0.67,129.79,129.75,19.708864]
[1763994295043,0.67,129.79,129.75,19.2784326]
[1763994295248,0.67,129.79,129.76,2.9695686]
[1763994298232,0.67,129.79,129.77,2.9695686]
[1763994299527,0.67,129.79,129.76,2.9695686]
[1763994299916,0.67,129.79,129.77,2.9695686]
[1763994300316,4.02838834,129.83,129.78,16.308864]
[1763994300538,2.9695686,129.8,129.78,16.308864]
[1763994300931,0.71,129.79,129.76,19.2784326]
[1763994302031,3.6795686,129.79,129.76,16.308864]
[1763994302441,0.71,129.78,129.76,16.308864]
[1763994302755,3.6795686,129.78,129.73,3.4]
[1763994302941,3.6795686,129.78,129.74,2.9695686]
[1763994303140,3.6795686,129.77,129.73,2.9695686]
[1763994303338,0.71,129.76,129.74,16.308864]
[1763994304056,0.71,129.76,129.71,13.87882769]
[1763994304057,2.9695686,129.75,129.71,2.9695686]
[1763994304233,2.9695686,129.75,129.7,3.4]
[1763994304429,0.71,129.74,129.71,2.9695686]
[1763994304635,0.71,129.74,129.72,2.9695686]
[1763994305272,5.12670017,129.79,129.73,2.9695686]
[1763994305273,2.9695686,129.77,129.73,2.9695686]
[1763994305457,0.71,129.76,129.74,2.9695686]
[1763994305631,0.71,129.76,129.73,2.9695686]
[1763994306239,0.71,129.76,129.69,0.1]
[1763994306440,2.9695686,129.71,129.69,0.1]
[1763994306644,2.9695686,129.7,129.69,0.1]
[1763994307148,0.71,129.7,129.69,0.1]
[1763994309150,0.71,129.72,129.69,3.7595686]
[1763994309484,0.71,129.72,129.7,2.9695686]
[1763994309653,9.03068567,129.75,129.7,2.9695686]
[1763994309654,0.71,129.74,129.71,2.9695686]
[1763994310474,0.71,129.74,129.72,2.9695686]
[1763994311089,4.74062792,129.74,129.71,16.308864]
[1763994311450,4.74062792,129.74,129.71,19.2784326]
[1763994311451,0.71,129.73,129.71,19.2784326]
[1763994311768,0.71,129.73,129.7,2.9695686]
[1763994312274,0.71,129.73,129.7,19.2784326]
[1763994313655,3.6795686,129.73,129.7,16.308864]
[1763994313857,2.9695686,129.71,129.69,0.1]
[1763994314184,3.6795686,129.7,129.69,0.1]
[1763994314963,0.71,129.7,129.69,0.1]
[1763994315849,9.96976512,129.73,129.69,3.7595686]
[1763994316051,0.71,129.72,129.7,2.9695686]
[1763994316270,0.71,129.72,129.69,0.79]
[1763994316582,0.71,129.72,129.7,2.9695686]
[1763994320281,0.71,129.72,129.71,2.9695686]
[1763994320457,8.11062792,129.74,129.71,2.9695686]
[1763994320866,0.68,129.73,129.7,19.2784326]
[1763994321566,0.68,129.73,129.71,2.9695686]
[1763994322161,7.43062792,129.74,129.71,2.9695686]
[1763994322366,4.73062792,129.74,129.72,2.9695686]
[1763994322777,4.03062792,129.74,129.72,2.9695686]
[1763994324678,4.73062792,129.74,129.72,2.9695686]
[1763994325072,4.03062792,129.74,129.73,2.9695686]
[1763994325660,7.70019652,129.74,129.69,0.1]
[1763994325866,0.7,129.73,129.69,3.0695686]
[1763994326085,0.7,129.73,129.7,2.9695686]
[1763994326779,0.7,129.73,129.69,0.1]
[1763994326983,2.9695686,129.72,129.69,0.1]
[1763994327356,0.7,129.71,129.69,0.1]
[1763994328856,4.73165078,129.71,129.69,0.1]
[1763994329059,0.7,129.71,129.69,0.1]
[1763994329288,0.7,129.7,129.69,0.1]
[1763994330766,4.03169526,129.71,129.69,3.0695686]
[1763994331086,4.03169526,129.71,129.7,2.9695686]
[1763994331254,4.03169526,129.71,129.69,0.1]
[1763994331255,4.73169526,129.71,129.69,0.1]
[1763994331459,0.7,129.7,129.69,0.1]
[1763994332372,4.03169526,129.71,129.69,0.1]
[1763994332575,4.73169526,129.71,129.69,0.1]
[1763994333367,4.73169526,129.71,129.69,3.0695686]
[1763994333676,4.03169526,129.71,129.69,3.7895686]
[1763994333867,4.03169526,129.71,129.69,3.0695686]
[1763994334074,4.73169526,129.71,129.69,3.0695686]
[1763994336684,4.73169526,129.71,129.69,0.1]
[1763994337790,4.73169526,129.71,129.69,3.0695686]
[1763994338290,0.7,129.71,129.69,3.0695686]
[1763994338795,4.73161704,129.71,129.69,3.0695686]
[1763994338980,0.7,129.71,129.69,3.0695686]
[1763994339286,4.73164299,129.71,129.69,3.0695686]
[1763994339476,4.73164299,129.71,129.69,0.1]
[1763994340067,4.73164299,129.71,129.69,3.0695686]
[1763994340995,4.73164299,129.71,129.7,16.308864]
[1763994341989,0.7,129.71,129.7,16.308864]
[1763994342180,4.73164299,129.71,129.7,16.308864]
[1763994343699,4.73164299,129.71,129.69,0.1]
[1763994343884,0.7,129.7,129.69,16.408864]
[1763994344489,4.03164299,129.71,129.69,0.1]
[1763994344689,4.73164299,129.71,129.69,0.1]
[1763994344889,4.03164299,129.71,129.69,0.1]
[1763994345099,0.7,129.7,129.69,16.408864]
[1763994345601,0.7,129.7,129.69,0.1]
[1763994347083,4.73164299,129.71,129.69,4.74665465]
[1763994347986,0.7,129.71,129.69,0.1]
[1763994348191,0.7,129.71,129.69,4.74665465]
[1763994348379,4.73161185,129.71,129.69,4.74665465]
[1763994349689,4.03161185,129.71,129.69,0.1]
[1763994349890,0.69,129.7,129.69,0.1]
[1763994350904,4.03161185,129.71,129.7,16.308864]
[1763994351086,5.15170462,129.75,129.71,16.308864]
[1763994351283,4.03046009,129.74,129.71,16.308864]
[1763994351489,4.03046009,129.74,129.72,4.64665465]
[1763994351714,0.69,129.73,129.72,4.64665465]
[1763994352093,4.72046009,129.74,129.72,4.64665465]
[1763994352521,4.72046009,129.74,129.71,4.64665465]
[1763994352728,4.70046009,129.74,129.71,4.64665465]
[1763994353719,4.70046009,129.74,129.71,5.32665465]
[1763994354328,4.70046009,129.74,129.72,4.64665465]
[1763994354514,4.70046009,129.74,129.73,4.64665465]
[1763994354908,4.70046009,129.74,129.72,4.64665465]
[1763994357034,4.03046009,129.74,129.73,4.64665465]
[1763994359625,4.03046009,129.74,129.72,5.32665465]
[1763994359828,4.03046009,129.74,129.73,4.64665465]
[1763994360137,4.03046009,129.74,129.73,5.32665465]
[1763994360320,0.67,129.77,129.73,5.32665465]
[1763994360635,4.03012298,129.75,129.74,4.64665465]
[1763994360806,4.03012298,129.75,129.73,0.68]
[1763994361005,4.03012298,129.75,129.74,4.64665465]
[1763994362026,4.03012298,129.75,129.74,5.32665465]
[1763994362222,0.67,129.78,129.74,5.32665465]
[1763994362420,4.64665465,129.76,129.72,4.64665465]
[1763994362729,4.64665465,129.74,129.69,0.1]
[1763994362931,4.64665465,129.74,129.7,4.64665465]
[1763994363109,4.64665465,129.74,129.72,4.64665465]
[1763994363110,0.67,129.74,129.72,4.64665465]
[1763994363306,0.67,129.74,129.71,4.64665465]
[1763994363512,0.67,129.74,129.71,5.32665465]
[1763994364121,0.67,129.74,129.72,4.64665465]
[1763994364924,0.67,129.74,129.71,5.32665465]
[1763994365943,0.67,129.74,129.71,4.64665465]
[1763994366134,5.31665465,129.74,129.7,4.64665465]
[1763994366538,0.67,129.73,129.7,5.32665465]
[1763994366723,0.67,129.73,129.71,4.64665465]
[1763994368026,4.70029412,129.75,129.72,4.64665465]
[1763994368231,0.67,129.74,129.72,4.64665465]
[1763994369032,0.67,129.74,129.71,4.64665465]
[1763994374242,4.64665465,129.73,129.69,4.74665465]
[1763994374429,4.64665465,129.72,129.69,0.1]
[1763994374848,0.67,129.72,129.69,0.78]
[1763994375559,0.67,129.72,129.69,5.42665465]
[1763994375854,0.67,129.72,129.69,0.1]
[1763994376039,0.67,129.72,129.69,4.74665465]
[1763994376365,5.31665465,129.72,129.69,0.1]
[1763994376751,0.67,129.71,129.69,0.1]
[1763994377056,5.81481852,129.73,129.69,5.42665465]
[1763994377257,0.67,129.74,129.71,4.64665465]
[1763994377465,8.67694877,129.75,129.71,4.64665465]
[1763994377466,0.67,129.73,129.71,4.64665465]
[1763994377677,0.67,129.73,129.7,5.32665465]
[1763994378171,0.67,129.73,129.7,4.64665465]
[1763994378371,0.67,129.73,129.7,5.32665465]
[1763994380154,0.67,129.74,129.71,5.32665465]
[1763994380360,0.67,129.74,129.72,4.64665465]
[1763994380553,0.67,129.74,129.71,5.32665465]
[1763994381852,0.67,129.74,129.71,4.64665465]
[1763994382779,0.67,129.74,129.71,5.30665465]
[1763994384267,0.67,129.74,129.71,4.64665465]
[1763994384458,5.31665465,129.74,129.7,4.64665465]
[1763994384665,5.31665465,129.74,129.7,5.30665465]
[1763994384861,0.71,129.73,129.69,4.74665465]
[1763994385063,5.35665465,129.73,129.69,0.1]
[1763994385474,0.71,129.72,129.69,4.74665465]
[1763994386579,0.71,129.72,129.69,0.1]
[1763994386775,5.35665465,129.72,129.69,0.1]
[1763994387076,0.71,129.72,129.69,0.1]
[1763994387280,0.71,129.71,129.69,0.1]
[1763994388670,0.71,129.71,129.69,4.74665465]
[1763994390564,0.71,129.71,129.69,0.1]
[1763994392765,4.74170008,129.71,129.69,0.1]
[1763994393292,4.74170008,129.71,129.69,4.74665465]
[1763994395295,0.71,129.7,129.69,4.74665465]
[1763994395796,4.74170008,129.71,129.69,4.74665465]
[1763994397591,4.03170008,129.71,129.69,4.74665465]
[1763994397897,4.03170008,129.71,129.7,4.64665465]
[1763994398084,4.03170008,129.71,129.7,5.30665465]
[1763994399792,4.11,129.74,129.7,5.30665465]
[1763994399977,4.11,129.74,129.71,5.30665465]
[1763994399978,4.03106183,129.73,129.71,5.30665465]
[1763994400298,4.74106183,129.73,129.71,4.64665465]